bitfinex-derivatives/quotes_SOLF0:USTF0_20251026
["timestamp","ask_amount","ask_price","bid_price","bid_amount"]
[1761461542772,4.58827354,193.96,193.85,2.79]
[1761461542968,8.41376368,193.95,193.85,2.79]
[1761461543271,8.41376368,193.94,193.85,2.79]
[1761461543473,8.41376368,193.93,193.85,2.79]
[1761461543771,8.41376368,193.92,193.85,2.79]
[1761461543972,3.82549014,193.91,193.85,2.79]
[1761461544171,8.41367108,193.97,193.85,2.79]
[1761461544375,8.41367108,193.96,193.85,2.79]
[1761461544576,8.41367108,193.95,193.85,2.79]
[1761461544776,8.41367108,193.94,193.85,2.79]
[1761461544977,8.41367108,193.93,193.85,2.79]
[1761461545182,8.41367108,193.92,193.85,2.79]
[1761461545474,3.82549014,193.91,193.85,2.79]
[1761461545678,8.41413372,193.96,193.85,2.79]
[1761461545871,8.41413372,193.95,193.85,2.79]
[1761461546067,8.41413372,193.94,193.85,2.79]
[1761461546272,8.41413372,193.93,193.85,2.79]
[1761461546477,8.41413372,193.92,193.85,2.79]
[1761461546679,3.82549014,193.91,193.85,2.79]
[1761461546980,4.58887803,193.96,193.85,2.79]
[1761461547181,8.41505394,193.95,193.85,2.79]
[1761461547476,8.41529686,193.94,193.85,2.79]
[1761461547676,8.41529686,193.93,193.85,2.79]
[1761461547876,8.41529686,193.92,193.85,2.79]
[1761461548071,3.82617591,193.91,193.85,2.79]
[1761461548273,4.58921073,193.96,193.85,2.79]
[1761461548474,8.4156696,193.95,193.85,2.79]
[1761461548680,8.4156696,193.94,193.85,2.79]
[1761461548881,8.4156696,193.93,193.85,2.79]
[1761461549181,8.4156696,193.92,193.85,2.79]
[1761461549381,3.82645887,193.91,193.85,2.79]
[1761461549571,4.58964472,193.96,193.85,2.79]
[1761461549773,8.41632459,193.95,193.85,2.79]
[1761461550072,8.41632459,193.94,193.85,2.79]
[1761461550372,8.41632459,193.93,193.85,2.79]
[1761461550567,8.41632459,193.92,193.85,2.79]
[1761461550779,3.82667987,193.91,193.85,2.79]
[1761461550974,4.58990732,193.96,193.85,2.79]
[1761461551280,2.34219678,193.97,193.85,2.79]
[1761461551281,8.41680001,193.95,193.85,2.79]
[1761461551479,8.41680001,193.94,193.85,2.79]
[1761461551681,8.41680001,193.93,193.85,2.79]
[1761461551881,8.41680001,193.92,193.85,2.79]
[1761461552182,3.82689269,193.91,193.85,2.79]
[1761461552481,4.59045372,193.96,193.85,2.79]
[1761461552689,8.41778781,193.95,193.85,2.79]
[1761461552882,2.34219678,193.97,193.85,2.79]
[1761461552883,8.41778781,193.94,193.85,2.79]
[1761461553083,8.41778781,193.93,193.85,2.79]
[1761461553283,8.41778781,193.92,193.85,2.79]
[1761461553480,3.82733409,193.91,193.85,2.79]
[1761461553685,4.59073819,193.96,193.85,2.79]
[1761461553886,8.4075759,193.95,193.85,2.79]
[1761461554084,8.4075759,193.94,193.85,2.79]
[1761461554279,8.4075759,193.93,193.85,2.79]
[1761461554480,8.4075759,193.92,193.85,2.79]
[1761461554776,3.81683771,193.91,193.85,2.79]
[1761461554977,4.59102876,193.96,193.85,2.79]
[1761461555173,8.40810123,193.95,193.85,2.79]
[1761461555377,8.40810123,193.94,193.85,2.79]
[1761461555586,8.40810123,193.93,193.85,2.79]
[1761461555782,8.40810123,193.92,193.85,2.79]
[1761461555974,3.81707247,193.91,193.85,2.79]
[1761461556176,6.43520376,193.98,193.85,2.79]
[1761461556177,4.59132891,193.97,193.85,2.79]
[1761461556378,8.40889007,193.96,193.85,2.79]
[1761461556578,8.40889007,193.95,193.85,2.79]
[1761461556779,6.43520376,193.98,193.85,2.79]
[1761461556780,8.40889007,193.94,193.85,2.79]
[1761461556975,8.40889007,193.93,193.85,2.79]
[1761461557180,8.40889007,193.92,193.85,2.79]
[1761461557478,3.81756116,193.91,193.85,2.79]
[1761461557679,4.59171382,193.97,193.85,2.79]
[1761461557875,8.40937728,193.96,193.85,2.79]
[1761461558083,8.40937728,193.95,193.85,2.79]
[1761461558288,8.40937728,193.94,193.85,2.79]
[1761461558489,8.40937728,193.93,193.85,2.79]
[1761461558682,8.40937728,193.92,193.85,2.79]
[1761461558980,3.81766346,193.91,193.85,2.79]
[1761461559177,4.59198173,193.97,193.85,2.79]
[1761461559380,8.41007985,193.96,193.85,2.79]
[1761461559581,8.41007985,193.95,193.85,2.79]
[1761461559781,8.41007985,193.94,193.85,2.79]
[1761461560076,8.41007985,193.93,193.85,2.79]
[1761461560282,8.41007985,193.92,193.85,2.79]
[1761461560482,3.81809812,193.91,193.85,2.79]
[1761461560682,4.59198372,193.97,193.85,2.79]
[1761461560884,8.41007971,193.96,193.85,2.79]
[1761461561083,8.41007971,193.95,193.85,2.79]
[1761461561290,8.41007971,193.94,193.85,2.79]
[1761461561488,8.41007971,193.93,193.85,2.79]
[1761461561791,8.41007971,193.92,193.85,2.79]
[1761461562091,3.81809599,193.91,193.85,2.79]
[1761461562391,4.59167157,193.97,193.85,2.79]
[1761461562586,8.40940849,193.96,193.85,2.79]
[1761461562786,8.40940849,193.95,193.85,2.79]
[1761461562990,8.40940849,193.94,193.85,2.79]
[1761461563189,8.40940849,193.93,193.85,2.79]
[1761461563390,8.40940849,193.92,193.85,2.79]
[1761461563590,3.81773692,193.91,193.85,2.79]
[1761461563890,4.59140413,193.97,193.85,2.79]
[1761461564090,8.40901822,193.96,193.85,2.79]
[1761461564289,8.40901822,193.95,193.85,2.79]
[1761461564593,8.40901822,193.94,193.85,2.79]
[1761461564890,8.40901822,193.93,193.85,2.79]
[1761461565186,8.40901822,193.92,193.85,2.79]
[1761461565388,3.81761409,193.91,193.85,2.79]
[1761461565584,4.59141133,193.97,193.85,2.79]
[1761461565785,8.40903031,193.96,193.85,2.79]
[1761461565981,8.40903031,193.95,193.85,2.79]
[1761461566187,8.40903031,193.94,193.85,2.79]
[1761461566385,8.40903031,193.93,193.85,2.79]
[1761461566682,8.40903031,193.92,193.85,2.79]
[1761461566886,3.81761898,193.91,193.85,2.79]
[1761461567084,4.59166113,193.97,193.85,2.79]
[1761461567393,8.40974282,193.96,193.85,2.79]
[1761461567593,8.40974282,193.95,193.85,2.79]
[1761461567781,8.40974282,193.94,193.85,2.79]
[1761461568091,8.40974282,193.93,193.85,2.79]
[1761461568291,8.40974282,193.92,193.85,2.79]
[1761461568494,8.40974282,193.91,193.85,2.79]
[1761461568687,6.43520376,193.97,193.85,2.79]
[1761461568688,3.81808169,193.9,193.85,2.79]
[1761461568886,4.59417705,193.96,193.85,2.79]
[1761461569080,8.41277247,193.95,193.85,2.79]
[1761461569289,8.41277247,193.94,193.85,2.79]
[1761461569486,8.41277247,193.93,193.85,2.79]
[1761461569689,8.41277247,193.92,193.85,2.79]
[1761461569893,8.41277247,193.91,193.85,2.79]
[1761461570196,8.41277247,193.9,193.85,2.79]
[1761461570494,8.77740054,193.97,193.85,2.79]
[1761461570691,4.81895085,193.94,193.85,2.79]
[1761461570894,8.41434868,193.93,193.85,2.79]
[1761461571095,8.41434868,193.92,193.85,2.79]
[1761461571296,8.41434868,193.91,193.85,2.79]
[1761461571496,8.41434868,193.9,193.85,2.79]
[1761461571699,4.81895085,193.94,193.85,2.79]
[1761461571899,8.41516897,193.93,193.85,2.79]
[1761461572094,8.41516897,193.92,193.85,2.79]
[1761461572294,8.41516897,193.91,193.85,2.79]
[1761461572492,8.41516897,193.9,193.85,2.79]
[1761461572695,4.81895085,193.94,193.85,2.79]
[1761461572891,8.41608261,193.93,193.85,2.79]
[1761461573099,8.41608261,193.92,193.85,2.79]
[1761461573291,8.41608261,193.91,193.85,2.79]
[1761461573492,8.41608261,193.9,193.85,2.79]
[1761461573799,4.81895085,193.94,193.85,2.79]
[1761461573992,8.41670486,193.93,193.85,2.79]
[1761461574192,8.41670486,193.92,193.85,2.79]
[1761461574392,8.41670486,193.91,193.85,2.79]
[1761461574589,3.82034796,193.9,193.85,2.79]
[1761461574790,4.59713527,193.93,193.85,2.79]
[1761461574993,8.418097,193.92,193.85,2.79]
[1761461575193,8.418097,193.91,193.85,2.79]
[1761461575496,8.418097,193.9,193.85,2.79]
[1761461575698,3.82096173,193.89,193.85,2.79]
[1761461575893,4.59778722,193.93,193.85,2.79]
[1761461576092,8.4193051,193.92,193.85,2.79]
[1761461576293,8.4193051,193.91,193.85,2.79]
[1761461576600,8.4193051,193.9,193.85,2.79]
[1761461576898,3.82151788,193.89,193.85,2.79]
[1761461577100,4.59862631,193.93,193.85,2.79]
[1761461577299,8.42148686,193.92,193.85,2.79]
[1761461577499,8.42148686,193.91,193.85,2.79]
[1761461577691,8.42148686,193.9,193.85,2.79]
[1761461577894,3.82286055,193.89,193.85,2.79]
[1761461578095,4.81895085,193.94,193.85,2.79]
[1761461578295,8.42362663,193.93,193.85,2.79]
[1761461578501,8.42362663,193.92,193.85,2.79]
[1761461578702,8.42362663,193.91,193.85,2.79]
[1761461579003,8.42362663,193.9,193.85,2.79]
[1761461579201,8.42362663,193.89,193.85,2.79]
[1761461579405,4.81895085,193.93,193.85,2.79]
[1761461579596,8.42537497,193.92,193.85,2.79]
[1761461579797,8.42537497,193.91,193.85,2.79]
[1761461579997,4.81895085,193.93,193.85,2.79]
[1761461579998,8.42537497,193.9,193.85,2.79]
[1761461580199,8.42537497,193.89,193.85,2.79]
[1761461580401,4.81895085,193.93,193.85,2.79]
[1761461580596,8.4263902,193.92,193.85,2.79]
[1761461580797,8.4263902,193.91,193.85,2.79]
[1761461581002,8.4263902,193.9,193.85,2.79]
[1761461581202,8.4263902,193.89,193.85,2.79]
[1761461581398,4.81895085,193.93,193.85,2.79]
[1761461581598,8.42745535,193.92,193.85,2.79]
[1761461581801,8.42745535,193.91,193.85,2.79]
[1761461582097,8.42745535,193.9,193.85,2.79]
[1761461582293,8.42745535,193.89,193.85,2.79]
[1761461582494,4.81895085,193.93,193.85,2.79]
[1761461582721,8.42903403,193.92,193.85,2.79]
[1761461583002,8.42903403,193.91,193.85,2.79]
[1761461583206,8.42903403,193.9,193.85,2.79]
[1761461583507,8.42903403,193.89,193.85,2.79]
[1761461583708,3.82604762,193.88,193.85,2.79]
[1761461583904,4.81895085,193.93,193.85,2.79]
[1761461584100,13.2487965,193.92,193.85,2.79]
[1761461584304,8.42984565,193.91,193.85,2.79]
[1761461584504,8.42984565,193.9,193.85,2.79]
[1761461584705,8.42984565,193.89,193.85,2.79]
[1761461584905,3.82589787,193.88,193.85,2.79]
[1761461585216,3.82858079,193.87,193.85,2.79]
[1761461585506,4.81895085,193.92,193.85,2.79]
[1761461585706,8.43491671,193.91,193.85,2.79]
[1761461585906,8.43491671,193.9,193.85,2.79]
[1761461586108,8.43491671,193.89,193.85,2.79]
[1761461586303,8.43491671,193.88,193.85,2.79]
[1761461586498,3.82858261,193.87,193.85,2.79]
[1761461586702,4.81895085,193.92,193.85,2.79]
[1761461587007,8.43477873,193.91,193.84,1.49805234]
[1761461587207,8.43477873,193.9,193.84,1.49805234]
[1761461587409,8.43477873,193.89,193.84,1.49805234]
[1761461587608,8.43477873,193.88,193.84,1.49805234]
[1761461587810,3.82857323,193.87,193.84,1.49805234]
[1761461588109,4.81895085,193.92,193.84,1.49805234]
[1761461588312,8.43453418,193.91,193.84,1.49805234]
[1761461588502,8.43453418,193.9,193.84,1.49805234]
[1761461588705,8.43453418,193.89,193.84,4.15805234]
[1761461588905,8.43453418,193.88,193.84,4.15805234]
[1761461589108,3.82852701,193.87,193.84,4.15805234]
[1761461589311,4.81895085,193.92,193.84,4.15805234]
[1761461589509,8.43419978,193.91,193.84,4.15805234]
[1761461589707,8.43419978,193.9,193.84,4.15805234]
[1761461589906,8.43419978,193.89,193.84,4.15805234]
[1761461590107,8.43419978,193.88,193.84,4.15805234]
[1761461590308,3.82838558,193.87,193.84,4.15805234]
[1761461590508,4.81895085,193.92,193.84,4.15805234]
[1761461590710,8.43389826,193.91,193.84,4.15805234]
[1761461590911,8.43389826,193.9,193.84,4.15805234]
[1761461591218,8.43389826,193.89,193.84,4.15805234]
[1761461591414,8.43389826,193.88,193.84,4.15805234]
[1761461591609,3.82825803,193.87,193.84,2.66]
[1761461591918,1.49805234,193.91,193.82,2.66]
[1761461592215,1.49805234,193.91,193.81,1.49805234]
[1761461592216,8.4336342,193.9,193.81,1.49805234]
[1761461592417,8.4336342,193.89,193.81,1.49805234]
[1761461592617,8.4336342,193.88,193.81,1.49805234]
[1761461592819,8.4336342,193.87,193.81,1.49805234]
[1761461593018,1.49805234,193.91,193.81,4.15805234]
[1761461593217,8.43350752,193.9,193.81,4.15805234]
[1761461593418,8.43350752,193.89,193.81,4.15805234]
[1761461593616,8.43350752,193.88,193.81,4.15805234]
[1761461593818,8.43350752,193.87,193.81,4.15805234]
[1761461594019,1.49805234,193.91,193.81,4.15805234]
[1761461594221,8.43293174,193.9,193.81,4.15805234]
[1761461594420,8.43293174,193.89,193.81,4.15805234]
[1761461594714,8.43293174,193.88,193.81,4.15805234]
[1761461594920,4.60497848,193.87,193.81,4.15805234]
[1761461595125,1.49805234,193.91,193.81,4.15805234]
[1761461595427,4.60410129,193.9,193.81,4.15805234]
[1761461595718,1.49805234,193.91,193.81,4.15805234]
[1761461595719,4.60410129,193.89,193.81,4.15805234]
[1761461595921,4.60410129,193.88,193.81,4.15805234]
[1761461596122,4.60410129,193.87,193.81,4.15805234]
[1761461596324,1.49805234,193.91,193.81,4.15805234]
[1761461596510,4.60375763,193.9,193.81,4.15805234]
[1761461596713,4.60375763,193.89,193.81,4.15805234]
[1761461596914,4.60375763,193.88,193.81,4.15805234]
[1761461597215,4.60375763,193.87,193.81,4.15805234]
[1761461597418,1.49805234,193.91,193.81,1.49805234]
[1761461597618,4.60606819,193.9,193.82,2.66]
[1761461597817,4.60606819,193.89,193.82,2.66]
[1761461598020,4.60606819,193.88,193.82,2.66]
[1761461598314,4.60606819,193.87,193.82,2.66]
[1761461598516,1.49805234,193.91,193.82,2.66]
[1761461598721,4.60581279,193.9,193.82,2.66]
[1761461598920,4.60581279,193.89,193.82,2.66]
[1761461599125,4.60581279,193.88,193.82,2.66]
[1761461599320,4.60581279,193.87,193.82,2.66]
[1761461599521,1.49805234,193.93,193.83,1.49805234]
[1761461599720,4.60559319,193.92,193.83,1.49805234]
[1761461600015,4.60559319,193.91,193.83,1.49805234]
[1761461600214,4.60559319,193.9,193.83,1.49805234]
[1761461600514,1.49805234,193.93,193.83,1.49805234]
[1761461600515,4.60559319,193.89,193.83,1.49805234]
[1761461600825,4.60559319,193.88,193.83,4.15805234]
[1761461601025,4.60559319,193.87,193.83,4.15805234]
[1761461601326,1.49805234,193.93,193.83,4.15805234]
[1761461601525,4.60562376,193.92,193.83,4.15805234]
[1761461601824,4.60562376,193.91,193.83,4.15805234]
[1761461602024,4.60562376,193.9,193.83,4.15805234]
[1761461602227,4.60562376,193.89,193.83,4.15805234]
[1761461602523,4.60562376,193.88,193.83,1.49805234]
[1761461602722,4.60562376,193.87,193.83,1.49805234]
[1761461602916,1.49805234,193.93,193.83,1.49805234]
[1761461603118,4.60537315,193.92,193.83,1.49805234]
[1761461603318,4.60537315,193.91,193.83,1.49805234]
[1761461603518,4.60537315,193.9,193.83,1.49805234]
[1761461603812,1.49805234,193.93,193.83,1.49805234]
[1761461603813,4.60537315,193.89,193.83,1.49805234]
[1761461604017,4.60537315,193.88,193.83,1.49805234]
[1761461604217,4.60537315,193.87,193.83,4.15805234]
[1761461604417,4.60537315,193.86,193.83,4.15805234]
[1761461604618,1.49805234,193.93,193.83,4.15805234]
[1761461604922,4.6047352,193.92,193.83,4.15805234]
[1761461605123,4.6047352,193.91,193.83,4.15805234]
[1761461605325,4.6047352,193.9,193.83,4.15805234]
[1761461605525,4.6047352,193.89,193.83,4.15805234]
[1761461605724,4.6047352,193.88,193.83,4.15805234]
[1761461605926,4.6047352,193.87,193.83,4.15805234]
[1761461606126,4.6047352,193.86,193.83,4.15805234]
[1761461606329,1.49805234,193.93,193.83,4.15805234]
[1761461606628,4.60427542,193.92,193.83,4.15805234]
[1761461606828,4.60427542,193.91,193.83,4.15805234]
[1761461607029,4.60427542,193.9,193.83,4.15805234]
[1761461607228,4.60427542,193.89,193.83,4.15805234]
[1761461607525,4.60427542,193.88,193.83,4.15805234]
[1761461607729,4.60427542,193.87,193.83,4.15805234]
[1761461607931,4.60427542,193.86,193.83,4.15805234]
[1761461608125,1.49805234,193.93,193.83,4.15805234]
[1761461608425,4.60403475,193.92,193.83,4.15805234]
[1761461608725,4.60403475,193.91,193.83,4.15805234]
[1761461608924,4.60403475,193.9,193.83,4.15805234]
[1761461609225,4.60403475,193.89,193.83,4.15805234]
[1761461609424,4.60403475,193.88,193.83,4.15805234]
[1761461609629,4.60403475,193.87,193.83,4.15805234]
[1761461609832,4.60403475,193.86,193.83,4.15805234]
[1761461610031,1.49805234,193.93,193.83,4.15805234]
[1761461610233,4.60416872,193.92,193.83,4.15805234]
[1761461610433,4.60416872,193.91,193.83,4.15805234]
[1761461610630,4.60416872,193.9,193.83,4.15805234]
[1761461610829,4.60416872,193.89,193.83,4.15805234]
[1761461611132,4.60416872,193.88,193.84,2.66]
[1761461611334,4.60416872,193.87,193.84,2.66]
[1761461611535,4.60416872,193.86,193.84,2.66]
[1761461611735,1.49805234,193.93,193.84,2.66]
[1761461611927,4.60406461,193.92,193.84,2.66]
[1761461612128,4.60406461,193.91,193.85,1.49805234]
[1761461612426,4.60406461,193.9,193.85,1.49805234]
[1761461612725,4.60406461,193.89,193.85,1.49805234]
[1761461612922,4.60406461,193.88,193.85,1.49805234]
[1761461613126,4.60406461,193.87,193.85,1.49805234]
[1761461613324,4.60406461,193.86,193.85,1.49805234]
[1761461613622,4.60406461,193.86,193.85,4.15805234]
[1761461614236,4.60406461,193.96,193.85,4.15805234]
[1761461614437,4.60406461,193.95,193.85,4.15805234]
[1761461614730,4.60406461,193.94,193.85,4.15805234]
[1761461614935,4.60406461,193.93,193.85,4.15805234]
[1761461615129,4.60406461,193.92,193.85,4.15805234]
[1761461615329,4.60406461,193.91,193.85,4.15805234]
[1761461615525,4.60406461,193.9,193.86,2.66]
[1761461615732,3.94644966,193.93,193.86,2.66]
[1761461615733,4.60406461,193.89,193.86,2.66]
[1761461615931,4.60406461,193.88,193.85,4.15805234]
[1761461616231,4.60406461,193.87,193.85,4.15805234]
[1761461616428,3.94648652,193.95,193.85,4.15805234]
[1761461616626,4.60430841,193.94,193.85,4.15805234]
[1761461616829,4.60430841,193.93,193.85,4.15805234]
[1761461617029,4.60430841,193.92,193.85,4.15805234]
[1761461617329,4.60430841,193.91,193.85,4.15805234]
[1761461617526,4.60430841,193.9,193.85,4.15805234]
[1761461617734,4.60430841,193.89,193.85,4.15805234]
[1761461617934,4.60430841,193.88,193.85,4.15805234]
[1761461618129,4.60430841,193.87,193.85,4.15805234]
[1761461618329,3.94648652,193.96,193.85,4.15805234]
[1761461618534,4.60448402,193.95,193.85,4.15805234]
[1761461618732,4.60448402,193.94,193.85,4.15805234]
[1761461618927,4.60448402,193.93,193.85,4.15805234]
[1761461619132,4.60448402,193.92,193.85,4.15805234]
[1761461619333,4.60448402,193.91,193.85,4.15805234]
[1761461619634,4.60448402,193.9,193.85,4.15805234]
[1761461619830,4.60448402,193.89,193.85,4.15805234]
[1761461620035,4.60448402,193.88,193.85,4.15805234]
[1761461620236,3.94648652,193.96,193.85,4.15805234]
[1761461620237,4.60448402,193.87,193.85,4.15805234]
[1761461620438,3.94648652,193.96,193.85,4.15805234]
[1761461620637,4.60501189,193.95,193.85,4.15805234]
[1761461620832,4.60501189,193.94,193.85,4.15805234]
[1761461621032,4.60501189,193.93,193.85,4.15805234]
[1761461621331,4.60501189,193.92,193.85,4.15805234]
[1761461621532,4.60501189,193.91,193.85,4.15805234]
[1761461621729,4.60501189,193.9,193.85,4.15805234]
[1761461621936,4.60501189,193.89,193.85,4.15805234]
[1761461622134,4.60501189,193.88,193.85,4.15805234]
[1761461622335,4.60501189,193.87,193.85,4.15805234]
[1761461622534,3.94648652,193.96,193.85,4.15805234]
[1761461622736,4.60538482,193.95,193.85,4.15805234]
[1761461622937,4.60538482,193.94,193.85,4.15805234]
[1761461623241,4.60538482,193.93,193.85,4.15805234]
[1761461623439,4.60538482,193.92,193.85,4.15805234]
[1761461623651,4.60538482,193.91,193.85,4.15805234]
[1761461623840,3.94648652,193.96,193.86,2.88]
[1761461623841,4.60538482,193.9,193.86,2.88]
[1761461624139,4.60538482,193.89,193.86,2.88]
[1761461624340,4.60538482,193.88,193.86,2.88]
[1761461624641,4.60538482,193.87,193.86,2.88]
[1761461637752,4.60538482,193.87,193.86,4.37805234]
[1761461638649,4.60538482,193.87,193.86,1.49805234]
[1761461638854,4.60538482,193.87,193.83,1.49805234]
[1761461639048,1.49805234,193.95,193.83,1.49805234]
[1761461639049,4.60538482,193.86,193.83,1.49805234]
[1761461639249,5.44797897,193.95,193.84,2.88]
[1761461639451,4.6103094,193.94,193.84,2.88]
[1761461639652,4.6103094,193.93,193.84,2.88]
[1761461639853,4.6103094,193.92,193.84,2.88]
[1761461640051,4.6103094,193.91,193.84,2.88]
[1761461640353,4.6103094,193.9,193.84,2.88]
[1761461640553,4.6103094,193.89,193.84,2.88]
[1761461640748,4.6103094,193.88,193.84,2.88]
[1761461640950,4.6103094,193.87,193.84,2.88]
[1761461641150,4.6103094,193.86,193.84,2.88]
[1761461641351,1.49805234,193.95,193.84,2.88]
[1761461641553,4.61026325,193.94,193.84,2.88]
[1761461641753,4.61026325,193.93,193.83,1.49805234]
[1761461641952,4.61026325,193.92,193.83,1.49805234]
[1761461642154,4.61026325,193.91,193.83,1.49805234]
[1761461642455,4.61026325,193.9,193.83,1.49805234]
[1761461642654,4.61026325,193.89,193.83,1.49805234]
[1761461642854,4.61026325,193.88,193.83,1.49805234]
[1761461643057,4.61026325,193.87,193.83,1.49805234]
[1761461643354,4.61026325,193.86,193.83,1.49805234]
[1761461643556,1.49805234,193.92,193.83,1.49805234]
[1761461643855,4.610521,193.91,193.83,1.49805234]
[1761461644155,4.610521,193.9,193.83,1.49805234]
[1761461644454,4.610521,193.89,193.83,1.49805234]
[1761461644755,4.610521,193.88,193.83,2.86]
[1761461645054,4.610521,193.87,193.83,2.86]
[1761461645258,4.610521,193.86,193.83,2.86]
[1761461645461,4.610521,193.85,193.83,2.86]
[1761461645648,3.95734876,193.95,193.83,2.86]
[1761461645848,4.61040709,193.94,193.83,2.86]
[1761461646149,4.61040709,193.93,193.83,2.86]
[1761461646348,4.61040709,193.92,193.83,2.86]
[1761461646647,4.61040709,193.91,193.83,2.86]
[1761461646847,4.61040709,193.9,193.83,2.86]
[1761461647045,4.61040709,193.89,193.83,2.86]
[1761461647248,4.61040709,193.88,193.83,2.86]
[1761461647448,4.61040709,193.87,193.83,2.86]
[1761461647656,4.61040709,193.86,193.83,2.86]
[1761461647858,4.61040709,193.85,193.83,2.86]
[1761461648057,3.95734876,193.91,193.83,2.86]
[1761461648356,4.60989677,193.9,193.83,2.86]
[1761461648556,4.60989677,193.89,193.83,2.86]
[1761461648758,4.60989677,193.88,193.83,2.86]
[1761461648956,4.60989677,193.87,193.83,2.86]
[1761461649258,4.60989677,193.86,193.83,2.86]
[1761461649556,4.60989677,193.85,193.83,2.86]
[1761461649754,2.34160971,193.97,193.83,2.86]
[1761461649954,8.56594284,193.96,193.83,2.86]
[1761461650154,8.56594284,193.95,193.83,2.86]
[1761461650357,8.56594284,193.94,193.83,2.86]
[1761461650560,8.56594284,193.93,193.83,2.86]
[1761461650758,8.56594284,193.92,193.83,2.86]
[1761461650950,8.56594284,193.91,193.83,2.86]
[1761461651150,4.60949783,193.9,193.83,2.86]
[1761461651350,4.60949783,193.89,193.83,2.86]
[1761461651555,4.60949783,193.88,193.83,2.86]
[1761461651756,3.9561373,193.95,193.83,2.86]
[1761461651757,4.60949783,193.87,193.83,2.86]
[1761461651956,4.60949783,193.86,193.83,2.86]
[1761461652156,4.60949783,193.85,193.83,2.86]
[1761461652358,3.9561373,193.91,193.83,2.86]
[1761461652554,4.6089756,193.9,193.83,2.86]
[1761461652753,4.6089756,193.89,193.83,2.86]
[1761461652957,4.6089756,193.88,193.83,2.86]
[1761461653159,4.6089756,193.87,193.83,2.86]
[1761461653358,4.6089756,193.86,193.83,2.86]
[1761461653655,4.6089756,193.85,193.83,2.86]
[1761461653857,2.34160971,193.97,193.83,2.86]
[1761461654155,8.56468425,193.96,193.83,2.86]
[1761461654355,4.60882028,193.95,193.83,2.86]
[1761461654547,4.60882028,193.94,193.83,2.86]
[1761461654752,4.60882028,193.93,193.83,2.86]
[1761461654952,4.60882028,193.92,193.83,2.86]
[1761461655152,4.60882028,193.91,193.83,2.86]
[1761461655356,4.60882028,193.9,193.83,2.86]
[1761461655556,4.60882028,193.89,193.83,2.86]
[1761461655766,4.60882028,193.88,193.83,2.86]
[1761461655964,4.60882028,193.87,193.83,2.86]
[1761461656159,4.60882028,193.86,193.83,2.86]
[1761461656360,3.95586397,193.95,193.83,2.86]
[1761461656658,4.60841343,193.94,193.83,2.86]
[1761461656859,4.60841343,193.93,193.83,2.86]
[1761461657061,4.60841343,193.92,193.83,2.86]
[1761461657256,4.60841343,193.91,193.83,2.86]
[1761461657456,4.60841343,193.9,193.83,2.86]
[1761461657652,4.60841343,193.89,193.83,2.86]
[1761461657857,4.60841343,193.88,193.83,2.86]
[1761461658060,4.60841343,193.87,193.83,2.86]
[1761461658257,3.95586397,193.95,193.83,2.86]
[1761461658258,4.60841343,193.86,193.83,2.86]
[1761461658461,3.95586397,193.95,193.83,2.86]
[1761461658661,4.58239205,193.94,193.83,2.86]
[1761461658857,4.58239205,193.93,193.83,2.86]
[1761461659062,4.58239205,193.92,193.83,2.86]
[1761461659262,4.58239205,193.91,193.83,2.86]
[1761461659462,4.58239205,193.9,193.83,2.86]
[1761461659762,4.58239205,193.89,193.83,2.86]
[1761461659961,4.58231635,193.88,193.83,2.86]
[1761461660162,4.58231635,193.87,193.83,2.86]
[1761461660366,4.58231635,193.86,193.83,2.86]
[1761461660669,3.95586397,193.95,193.83,2.86]
[1761461660971,4.582318,193.94,193.83,2.86]
[1761461661162,4.582318,193.93,193.83,2.86]
[1761461661362,4.582318,193.92,193.83,2.86]
[1761461661567,4.582318,193.91,193.83,2.86]
[1761461661871,4.582318,193.9,193.83,2.86]
[1761461662071,4.582318,193.89,193.83,2.86]
[1761461662272,4.582318,193.88,193.83,2.86]
[1761461662473,4.582318,193.87,193.83,2.86]
[1761461662669,4.582318,193.86,193.83,2.86]